[Event "Early-Titled-Tuesday-Blitz-March-19-2024"]
[Site "Chess.com"]
[Date "2024.03.19"]
[Round "4"]
[White "GM_dmitrij"]
[Black "Eagle_2019"]
[Result "1-0"]
[WhiteElo "3082"]
[BlackElo "2863"]
[TimeControl "180+1"]
[EndTime "8:40:58 PDT"]
[Termination "GM_dmitrij won by resignation"]

1. e4 {[%clk 0:03:00.9]} 1... c5 {[%clk 0:02:56.2]} 2. Nf3 {[%clk 0:03:00.1]}
2... Nc6 {[%clk 0:02:55.7]} 3. Bb5 {[%clk 0:02:57.4]} 3... e6 {[%clk 0:02:53.9]}
4. O-O {[%clk 0:02:55.9]} 4... Nge7 {[%clk 0:02:53.5]} 5. Re1 {[%clk 0:02:55.8]}
5... a6 {[%clk 0:02:53]} 6. Bf1 {[%clk 0:02:55.2]} 6... Nd4 {[%clk 0:02:52.6]}
7. Nxd4 {[%clk 0:02:50.3]} 7... cxd4 {[%clk 0:02:52.2]} 8. c3 {[%clk 0:02:48.9]}
8... Nc6 {[%clk 0:02:51.4]} 9. d3 {[%clk 0:02:45.8]} 9... Bc5 {[%clk 0:02:50.7]}
10. Nd2 {[%clk 0:02:39.9]} 10... O-O {[%clk 0:02:48.2]} 11. e5 {[%clk
0:02:40.2]} 11... Ba7 {[%clk 0:02:22.8]} 12. Qh5 {[%clk 0:02:24.7]} 12... f6
{[%clk 0:02:09.6]} 13. exf6 {[%clk 0:02:21.6]} 13... Qxf6 {[%clk 0:01:37.3]} 14.
Ne4 {[%clk 0:02:21.5]} 14... Qf7 {[%clk 0:01:11.2]} 15. Qxf7+ {[%clk 0:02:21.1]}
15... Rxf7 {[%clk 0:01:11.4]} 16. c4 {[%clk 0:02:21.4]} 16... Rf8 {[%clk
0:00:59.7]} 17. b3 {[%clk 0:02:11.6]} 17... d5 {[%clk 0:00:54.7]} 18. Nd6 {[%clk
0:02:00.1]} 18... Rf6 {[%clk 0:00:44.3]} 19. cxd5 {[%clk 0:01:44.5]} 19... Nb4
{[%clk 0:00:32.3]} 20. Nxc8 {[%clk 0:01:32.4]} 20... Rxc8 {[%clk 0:00:31.7]} 21.
dxe6 {[%clk 0:01:04.3]} 21... Nc2 {[%clk 0:00:30.8]} 22. Bg5 {[%clk 0:01:04.5]}
22... Rg6 {[%clk 0:00:23.7]} 23. Rac1 {[%clk 0:00:56.6]} 23... Rxg5 {[%clk
0:00:22.1]} 24. e7 {[%clk 0:00:55]} 24... Re8 {[%clk 0:00:12.3]} 25. Rxc2 {[%clk
0:00:54.9]} 25... Rc5 {[%clk 0:00:12.2]} 26. Rce2 {[%clk 0:00:47.3]} 26... Kf7
{[%clk 0:00:11]} 27. g3 {[%clk 0:00:46.1]} 27... Rc7 {[%clk 0:00:10.9]} 28. Bg2
{[%clk 0:00:46.1]} 28... Rexe7 {[%clk 0:00:10]} 29. Rxe7+ {[%clk 0:00:40.2]}
29... Rxe7 {[%clk 0:00:10.9]} 30. Rxe7+ {[%clk 0:00:40.6]} 30... Kxe7 {[%clk
0:00:11.8]} 31. Bxb7 {[%clk 0:00:41.1]} 31... a5 {[%clk 0:00:12.3]} 32. Kg2
{[%clk 0:00:31.9]} 32... Bc5 {[%clk 0:00:11.4]} 33. Kf3 {[%clk 0:00:31.7]} 33...
Bb4 {[%clk 0:00:08.8]} 34. Ke4 {[%clk 0:00:31.5]} 34... Bc3 {[%clk 0:00:09.1]}
35. Ke5 {[%clk 0:00:28.4]} 35... Bb2 {[%clk 0:00:07.8]} 36. Be4 {[%clk
0:00:27.1]} 36... g6 {[%clk 0:00:06]} 37. h4 {[%clk 0:00:23]} 37... Bc3 {[%clk
0:00:05.9]} 38. Kf4 {[%clk 0:00:09.4]} 38... Be1 {[%clk 0:00:05.7]} 39. Kf3
{[%clk 0:00:07.9]} 39... Kf6 {[%clk 0:00:06]} 40. g4 {[%clk 0:00:07.3]} 40...
Bd2 {[%clk 0:00:05.5]} 41. g5+ {[%clk 0:00:06.2]} 41... Kf7 {[%clk 0:00:05.7]}
42. Kg4 {[%clk 0:00:06.3]} 42... h6 {[%clk 0:00:05.4]} 43. gxh6 {[%clk
0:00:05.4]} 43... Bxh6 {[%clk 0:00:06.3]} 44. f4 {[%clk 0:00:06.1]} 44... Kf6
{[%clk 0:00:06.4]} 45. Bf3 {[%clk 0:00:05.2]} 45... Bf8 {[%clk 0:00:06.3]} 46.
Bc6 {[%clk 0:00:05.5]} 46... Bd6 {[%clk 0:00:06.4]} 47. Be8 {[%clk 0:00:05.7]}
47... Bc5 {[%clk 0:00:06.2]} 48. Kf3 {[%clk 0:00:06.2]} 48... Bb4 {[%clk
0:00:05.9]} 49. Ke4 {[%clk 0:00:06.3]} 49... Bd6 {[%clk 0:00:06.3]} 50. Bd7
{[%clk 0:00:05.5]} 50... Bc7 {[%clk 0:00:06.3]} 51. f5 {[%clk 0:00:05.7]} 51...
gxf5+ {[%clk 0:00:06.3]} 52. Bxf5 {[%clk 0:00:06.6]} 52... Bb6 {[%clk
0:00:04.8]} 53. h5 {[%clk 0:00:06.6]} 53... Kg5 {[%clk 0:00:04.8]} 54. Bg6
{[%clk 0:00:07.2]} 54... Bc5 {[%clk 0:00:02.8]} 55. Kd5 {[%clk 0:00:07.6]} 55...
Ba7 {[%clk 0:00:03]} 56. Kc6 {[%clk 0:00:07.7]} 56... Bb8 {[%clk 0:00:02.7]} 57.
Kb6 {[%clk 0:00:08.1]} 57... Bg3 {[%clk 0:00:02]} 58. Kxa5 {[%clk 0:00:08.2]}
1-0

[Event "Early-Titled-Tuesday-Blitz-March-19-2024"]
[Site "Chess.com"]
[Date "2024.03.19"]
[Round "4"]
[White "mary-sanna"]
[Black "BallottiLuca"]
[Result "0-1"]
[WhiteElo "2193"]
[BlackElo "2395"]
[TimeControl "180+1"]
[EndTime "8:41:02 PDT"]
[Termination "BallottiLuca won on time"]

1. d4 {[%clk 0:02:40.4]} 1... Nf6 {[%clk 0:02:59.5]} 2. c4 {[%clk 0:02:41]} 2...
c5 {[%clk 0:02:58.7]} 3. d5 {[%clk 0:02:41.1]} 3... e6 {[%clk 0:02:58]} 4. Nc3
{[%clk 0:02:40.6]} 4... exd5 {[%clk 0:02:57.4]} 5. cxd5 {[%clk 0:02:41.5]} 5...
d6 {[%clk 0:02:56.6]} 6. e4 {[%clk 0:02:41.7]} 6... g6 {[%clk 0:02:56]} 7. h3
{[%clk 0:02:40.9]} 7... Bg7 {[%clk 0:02:54.8]} 8. Nf3 {[%clk 0:02:41]} 8... O-O
{[%clk 0:02:54.7]} 9. Be3 {[%clk 0:02:41]} 9... Re8 {[%clk 0:02:51.6]} 10. Bd3
{[%clk 0:02:35.7]} 10... c4 {[%clk 0:02:49.3]} 11. Bxc4 {[%clk 0:02:35.2]} 11...
Nxe4 {[%clk 0:02:45.8]} 12. Nxe4 {[%clk 0:02:30.5]} 12... Rxe4 {[%clk
0:02:46.7]} 13. Qc2 {[%clk 0:02:22.2]} 13... Re8 {[%clk 0:02:46.7]} 14. O-O
{[%clk 0:02:20.9]} 14... Nd7 {[%clk 0:02:47]} 15. Rab1 {[%clk 0:02:17.7]} 15...
Ne5 {[%clk 0:02:47.1]} 16. Nxe5 {[%clk 0:02:02.3]} 16... Bxe5 {[%clk 0:02:48]}
17. Rfe1 {[%clk 0:01:54.6]} 17... Bf5 {[%clk 0:02:47.8]} 18. Bd3 {[%clk
0:01:53.6]} 18... Bxd3 {[%clk 0:02:47.3]} 19. Qxd3 {[%clk 0:01:54]} 19... Qf6
{[%clk 0:02:47.8]} 20. b3 {[%clk 0:01:43.4]} 20... b6 {[%clk 0:02:47.3]} 21.
Rbc1 {[%clk 0:01:35.2]} 21... Rac8 {[%clk 0:02:46.8]} 22. Rxc8 {[%clk
0:01:32.1]} 22... Rxc8 {[%clk 0:02:47.7]} 23. Rc1 {[%clk 0:01:30.5]} 23... Rxc1+
{[%clk 0:02:43.5]} 24. Bxc1 {[%clk 0:01:31.4]} 24... Bd4 {[%clk 0:02:38.9]} 25.
Qe2 {[%clk 0:01:07.5]} 25... Kg7 {[%clk 0:02:35.6]} 26. Ba3 {[%clk 0:00:58.2]}
26... a5 {[%clk 0:02:30.6]} 27. Kf1 {[%clk 0:00:56]} 27... h5 {[%clk 0:02:30.7]}
28. f3 {[%clk 0:00:52.3]} 28... Qf4 {[%clk 0:02:07.2]} 29. Qd3 {[%clk
0:00:41.6]} 29... Be5 {[%clk 0:01:54.1]} 30. Qc2 {[%clk 0:00:32]} 30... Qh2
{[%clk 0:01:43.2]} 31. Bb2 {[%clk 0:00:25.9]} 31... Qh1+ {[%clk 0:01:42.1]} 32.
Kf2 {[%clk 0:00:26]} 32... Qh2 {[%clk 0:01:33.1]} 33. Bxe5+ {[%clk 0:00:20.3]}
33... Qxe5 {[%clk 0:01:34]} 34. Qc6 {[%clk 0:00:18.6]} 34... Qd4+ {[%clk
0:01:25.6]} 35. Kg3 {[%clk 0:00:18.1]} 35... h4+ {[%clk 0:01:24.8]} 36. Kh2
{[%clk 0:00:18.3]} 36... Qe5+ {[%clk 0:01:07.7]} 37. Kg1 {[%clk 0:00:17.4]}
37... Qa1+ {[%clk 0:00:59]} 38. Kh2 {[%clk 0:00:17.4]} 38... Qxa2 {[%clk
0:00:59.5]} 39. Qxb6 {[%clk 0:00:16.9]} 39... Qa3 {[%clk 0:00:56.7]} 40. Qb5
{[%clk 0:00:13.3]} 40... Qb4 {[%clk 0:00:56.4]} 41. Qc6 {[%clk 0:00:10.4]} 41...
Qc5 {[%clk 0:00:50.8]} 42. Qb7 {[%clk 0:00:09.4]} 42... Kf6 {[%clk 0:00:46.4]}
43. Qa8 {[%clk 0:00:08.1]} 43... Kg7 {[%clk 0:00:40.5]} 44. Qb7 {[%clk
0:00:06.9]} 44... Qb4 {[%clk 0:00:38.8]} 45. Qc6 {[%clk 0:00:06.7]} 45... Kh6
{[%clk 0:00:37.5]} 46. Qe8 {[%clk 0:00:04.2]} 46... Qf4+ {[%clk 0:00:34.6]} 47.
Kg1 {[%clk 0:00:04]} 47... Kg7 {[%clk 0:00:34.1]} 48. Qd8 {[%clk 0:00:03]} 48...
Qe5 {[%clk 0:00:34.3]} 49. Qxh4 {[%clk 0:00:02.7]} 49... Qa1+ {[%clk 0:00:34]}
50. Kh2 {[%clk 0:00:02.6]} 50... Qe5+ {[%clk 0:00:33.8]} 51. Qg3 {[%clk
0:00:01.2]} 51... Qxd5 {[%clk 0:00:33.8]} 52. Qf4 {[%clk 0:00:01.2]} 52... g5
{[%clk 0:00:20.1]} 53. Qg3 {[%clk 0:00:01.2]} 53... Kg6 {[%clk 0:00:19.7]} 54.
h4 {[%clk 0:00:01.5]} 54... f6 {[%clk 0:00:18.6]} 55. hxg5 {[%clk 0:00:02.4]}
55... fxg5 {[%clk 0:00:19.1]} 56. Qg4 {[%clk 0:00:02.4]} 56... Qe5+ {[%clk
0:00:19.3]} 57. g3 {[%clk 0:00:02.6]} 57... Qe2+ {[%clk 0:00:18.9]} 58. Kh3
{[%clk 0:00:03]} 58... Qf1+ {[%clk 0:00:19.4]} 59. Kh2 {[%clk 0:00:02.9]} 59...
Qf2+ {[%clk 0:00:19.8]} 60. Kh3 {[%clk 0:00:03.2]} 60... Qd4 {[%clk 0:00:15.9]}
61. Qe6+ {[%clk 0:00:03.3]} 61... Qf6 {[%clk 0:00:16.5]} 62. Qe4+ {[%clk
0:00:03.4]} 62... Qf5+ {[%clk 0:00:13.9]} 0-1

[Event "Early-Titled-Tuesday-Blitz-March-19-2024"]
[Site "Chess.com"]
[Date "2024.03.19"]
[Round "4"]
[White "SmirnovAlexandrA"]
[Black "BardArtem"]
[Result "1-0"]
[WhiteElo "2621"]
[BlackElo "2818"]
[TimeControl "180+1"]
[EndTime "8:41:08 PDT"]
[Termination "SmirnovAlexandrA won by checkmate"]

1. e4 {[%clk 0:02:52.6]} 1... d5 {[%clk 0:02:51.4]} 2. exd5 {[%clk 0:02:52.2]}
2... Qxd5 {[%clk 0:02:52.3]} 3. Nc3 {[%clk 0:02:52.6]} 3... Qe5+ {[%clk
0:02:52]} 4. Be2 {[%clk 0:02:52]} 4... Bg4 {[%clk 0:02:51.4]} 5. d4 {[%clk
0:02:32.4]} 5... Bxe2 {[%clk 0:02:51]} 6. Ngxe2 {[%clk 0:02:33.3]} 6... Qa5
{[%clk 0:02:51.6]} 7. O-O {[%clk 0:02:32.3]} 7... Nf6 {[%clk 0:02:49.6]} 8. Bf4
{[%clk 0:02:26.9]} 8... Nc6 {[%clk 0:02:48.5]} 9. Qd3 {[%clk 0:02:11.2]} 9...
O-O-O {[%clk 0:02:46.2]} 10. Ne4 {[%clk 0:02:11.5]} 10... Kb8 {[%clk 0:02:08.4]}
11. Ng5 {[%clk 0:02:06.3]} 11... Qd5 {[%clk 0:02:06]} 12. c4 {[%clk 0:02:04.2]}
12... Qd7 {[%clk 0:01:38.2]} 13. Nxf7 {[%clk 0:02:02.8]} 13... e5 {[%clk
0:01:38.6]} 14. Nxd8 {[%clk 0:02:02.1]} 14... Qxd8 {[%clk 0:01:36.7]} 15. Be3
{[%clk 0:01:52.1]} 15... e4 {[%clk 0:01:36.6]} 16. Qc3 {[%clk 0:01:48.7]} 16...
Bd6 {[%clk 0:01:27.2]} 17. c5 {[%clk 0:01:35]} 17... Be7 {[%clk 0:01:21.7]} 18.
Rfd1 {[%clk 0:01:30.7]} 18... Nd5 {[%clk 0:01:21.4]} 19. Qb3 {[%clk 0:01:30.2]}
19... Rf8 {[%clk 0:01:12.8]} 20. Nc3 {[%clk 0:01:27]} 20... Nxc3 {[%clk
0:01:05.2]} 21. bxc3 {[%clk 0:01:21]} 21... Bg5 {[%clk 0:01:00.2]} 22. Rab1
{[%clk 0:01:20.6]} 22... b6 {[%clk 0:01:00.1]} 23. cxb6 {[%clk 0:01:20.1]} 23...
cxb6 {[%clk 0:00:42.6]} 24. c4 {[%clk 0:01:09.5]} 24... Na5 {[%clk 0:00:29.7]}
25. Qb5 {[%clk 0:01:04.8]} 25... Bxe3 {[%clk 0:00:29.1]} 26. fxe3 {[%clk
0:01:04.7]} 26... Nb7 {[%clk 0:00:22.6]} 27. Qe5+ {[%clk 0:00:58.1]} 27... Ka8
{[%clk 0:00:22.4]} 28. c5 {[%clk 0:00:56.9]} 28... Re8 {[%clk 0:00:21.1]} 29.
Qg3 {[%clk 0:00:53.8]} 29... Qd5 {[%clk 0:00:17.9]} 30. cxb6 {[%clk 0:00:53.1]}
30... a6 {[%clk 0:00:05.1]} 31. Rbc1 {[%clk 0:00:51.3]} 31... Qd6 {[%clk
0:00:01.4]} 32. Qxd6 {[%clk 0:00:49.8]} 32... Nxd6 {[%clk 0:00:02.3]} 33. Rc7
{[%clk 0:00:48.9]} 33... Nf5 {[%clk 0:00:02.6]} 34. Kf2 {[%clk 0:00:45.2]} 34...
Kb8 {[%clk 0:00:01.8]} 35. Rdc1 {[%clk 0:00:43.5]} 35... Rf8 {[%clk 0:00:02]}
36. Ke2 {[%clk 0:00:43.5]} 36... Rf6 {[%clk 0:00:02.7]} 37. b7 {[%clk 0:00:41]}
37... Rb6 {[%clk 0:00:02.3]} 38. Rc8+ {[%clk 0:00:40.1]} 38... Ka7 {[%clk
0:00:02.4]} 39. b8=Q+ {[%clk 0:00:30.3]} 39... Rxb8 {[%clk 0:00:03.3]} 40. Rxb8
{[%clk 0:00:30.7]} 40... Kxb8 {[%clk 0:00:04.2]} 41. Rc5 {[%clk 0:00:25.9]}
41... Nd6 {[%clk 0:00:04.7]} 42. Rc6 {[%clk 0:00:24.2]} 42... Nb5 {[%clk
0:00:03]} 43. Rxa6 {[%clk 0:00:23.9]} 43... Kc7 {[%clk 0:00:02.2]} 44. Ra5
{[%clk 0:00:22.9]} 44... Nd6 {[%clk 0:00:01.8]} 45. Ra7+ {[%clk 0:00:22.3]}
45... Kc6 {[%clk 0:00:01.7]} 46. Ra6+ {[%clk 0:00:22.5]} 46... Kd5 {[%clk
0:00:02.6]} 47. Rxd6+ {[%clk 0:00:23]} 47... Kxd6 {[%clk 0:00:03.5]} 48. Kd2
{[%clk 0:00:23.7]} 48... Kd5 {[%clk 0:00:04.4]} 49. Kc3 {[%clk 0:00:24.6]} 49...
g5 {[%clk 0:00:05.3]} 50. g4 {[%clk 0:00:24.3]} 50... h5 {[%clk 0:00:06.2]} 51.
gxh5 {[%clk 0:00:24]} 51... Ke6 {[%clk 0:00:06.4]} 52. a4 {[%clk 0:00:23.6]}
52... g4 {[%clk 0:00:06.7]} 53. a5 {[%clk 0:00:23.6]} 53... Kf5 {[%clk
0:00:07.3]} 54. a6 {[%clk 0:00:23.3]} 54... g3 {[%clk 0:00:07.8]} 55. hxg3
{[%clk 0:00:23.1]} 55... Kg4 {[%clk 0:00:08.7]} 56. a7 {[%clk 0:00:23.7]} 56...
Kf3 {[%clk 0:00:09.6]} 57. Kd2 {[%clk 0:00:24.2]} 57... Kf2 {[%clk 0:00:09.4]}
58. a8=Q {[%clk 0:00:25.1]} 58... Kf3 {[%clk 0:00:09.3]} 59. g4 {[%clk
0:00:25.1]} 59... Kg3 {[%clk 0:00:09.6]} 60. g5 {[%clk 0:00:25.6]} 60... Kf2
{[%clk 0:00:10.5]} 61. g6 {[%clk 0:00:26.2]} 61... Kf3 {[%clk 0:00:11.3]} 62. g7
{[%clk 0:00:26.3]} 62... Kg2 {[%clk 0:00:08.4]} 63. h6 {[%clk 0:00:26.5]} 63...
Kf1 {[%clk 0:00:09.3]} 64. h7 {[%clk 0:00:26.3]} 64... Kf2 {[%clk 0:00:10.2]}
65. Qxe4 {[%clk 0:00:24.9]} 65... Kf1 {[%clk 0:00:11.1]} 66. d5 {[%clk
0:00:25.3]} 66... Kf2 {[%clk 0:00:12]} 67. d6 {[%clk 0:00:25.8]} 67... Kf1
{[%clk 0:00:12.6]} 68. d7 {[%clk 0:00:26.3]} 68... Kf2 {[%clk 0:00:13.5]} 69.
d8=Q {[%clk 0:00:26.4]} 69... Kf1 {[%clk 0:00:14.4]} 70. Qed4 {[%clk 0:00:25.7]}
70... Kf2 {[%clk 0:00:15.3]} 71. e4+ {[%clk 0:00:26]} 71... Kf1 {[%clk
0:00:16.2]} 72. Qe3 {[%clk 0:00:25.7]} 72... Kg2 {[%clk 0:00:16.9]} 73. e5
{[%clk 0:00:25.9]} 73... Kf1 {[%clk 0:00:17.4]} 74. e6 {[%clk 0:00:26.3]} 74...
Kg2 {[%clk 0:00:18.3]} 75. e7 {[%clk 0:00:26.8]} 75... Kf1 {[%clk 0:00:19.2]}
76. e8=Q {[%clk 0:00:27.1]} 76... Kg2 {[%clk 0:00:20.1]} 77. h8=Q {[%clk
0:00:23.5]} 77... Kf1 {[%clk 0:00:21]} 78. Qdd3+ {[%clk 0:00:23.2]} 78... Kg2
{[%clk 0:00:21.9]} 79. g8=Q# {[%clk 0:00:23.6]} 1-0

[Event "Early-Titled-Tuesday-Blitz-March-19-2024"]
[Site "Chess.com"]
[Date "2024.03.19"]
[Round "4"]
[White "NovoselovRoman"]
[Black "kingofthenil"]
[Result "0-1"]
[WhiteElo "2549"]
[BlackElo "2784"]
[TimeControl "180+1"]
[EndTime "8:41:09 PDT"]
[Termination "kingofthenil won by checkmate"]

1. e4 {[%clk 0:02:58.5]} 1... Nc6 {[%clk 0:02:54.5]} 2. Bc4 {[%clk 0:02:52.9]}
2... d5 {[%clk 0:02:55.4]} 3. Bxd5 {[%clk 0:02:51.4]} 3... Bd7 {[%clk
0:02:53.7]} 4. Nc3 {[%clk 0:02:49.3]} 4... Nf6 {[%clk 0:02:53.1]} 5. Bb3 {[%clk
0:02:44.6]} 5... e5 {[%clk 0:02:53.5]} 6. Nf3 {[%clk 0:02:42.4]} 6... Bg4 {[%clk
0:02:53.5]} 7. Ba4 {[%clk 0:02:26.8]} 7... Qd6 {[%clk 0:02:45.4]} 8. d3 {[%clk
0:02:21.1]} 8... a6 {[%clk 0:02:43.5]} 9. Bxc6+ {[%clk 0:02:19.6]} 9... Qxc6
{[%clk 0:02:42.8]} 10. h3 {[%clk 0:02:12]} 10... Bxf3 {[%clk 0:02:26.4]} 11.
Qxf3 {[%clk 0:02:12.9]} 11... Bb4 {[%clk 0:02:26.5]} 12. Bd2 {[%clk 0:02:13.3]}
12... O-O-O {[%clk 0:02:27.4]} 13. O-O {[%clk 0:02:00.4]} 13... Kb8 {[%clk
0:02:23.2]} 14. a3 {[%clk 0:01:58.4]} 14... Bc5 {[%clk 0:02:22.6]} 15. Bg5
{[%clk 0:01:51.1]} 15... Bd4 {[%clk 0:02:12.6]} 16. Nd5 {[%clk 0:01:30.4]} 16...
Rhg8 {[%clk 0:02:03.1]} 17. Ne7 {[%clk 0:01:19.7]} 17... Qxc2 {[%clk 0:02:03.2]}
18. Nxg8 {[%clk 0:01:10.4]} 18... Rxg8 {[%clk 0:02:04.1]} 19. Bxf6 {[%clk
0:00:48.4]} 19... gxf6 {[%clk 0:02:05]} 20. Qxf6 {[%clk 0:00:49.2]} 20... Qxd3
{[%clk 0:02:01.8]} 21. Kh1 {[%clk 0:00:33.9]} 21... Qxe4 {[%clk 0:02:00.8]} 22.
f3 {[%clk 0:00:29]} 22... Qe2 {[%clk 0:01:41.6]} 23. Rg1 {[%clk 0:00:20.4]}
23... Qxb2 {[%clk 0:00:30.7]} 24. Qxf7 {[%clk 0:00:16.1]} 24... Rxg2 {[%clk
0:00:30.6]} 25. Rxg2 {[%clk 0:00:14.4]} 25... Qxa1+ {[%clk 0:00:30.7]} 26. Kh2
{[%clk 0:00:15.3]} 26... Qxa3 {[%clk 0:00:15.5]} 27. Rg8+ {[%clk 0:00:14.2]}
27... Ka7 {[%clk 0:00:16.1]} 28. Qxc7 {[%clk 0:00:14.5]} 28... Qb2+ {[%clk
0:00:06.4]} 29. Rg2 {[%clk 0:00:14.5]} 29... Qa1 {[%clk 0:00:06.8]} 30. Qc4
{[%clk 0:00:12.3]} 30... e4 {[%clk 0:00:05.4]} 31. f4 {[%clk 0:00:12.7]} 31...
e3 {[%clk 0:00:05.2]} 32. Qd3 {[%clk 0:00:13]} 32... a5 {[%clk 0:00:02.9]} 33.
Qe4 {[%clk 0:00:12]} 33... a4 {[%clk 0:00:02.6]} 34. Qd5 {[%clk 0:00:08.2]}
34... a3 {[%clk 0:00:02.8]} 35. Ra2 {[%clk 0:00:08.8]} 35... Qc3 {[%clk
0:00:02.1]} 36. Qd6 {[%clk 0:00:05]} 36... Bc5 {[%clk 0:00:02.4]} 37. Qd5 {[%clk
0:00:05.3]} 37... Kb6 {[%clk 0:00:02.2]} 38. Re2 {[%clk 0:00:05.2]} 38... Qd4
{[%clk 0:00:02.7]} 39. Qf3 {[%clk 0:00:05.1]} 39... Qc4 {[%clk 0:00:02.5]} 40.
Rg2 {[%clk 0:00:05.3]} 40... a2 {[%clk 0:00:02.8]} 41. Rg7 {[%clk 0:00:05.1]}
41... a1=Q {[%clk 0:00:03.2]} 42. Qxb7+ {[%clk 0:00:05.1]} 42... Ka5 {[%clk
0:00:04.1]} 43. Qa8+ {[%clk 0:00:05.6]} 43... Qa6 {[%clk 0:00:03.7]} 44. Qd8+
{[%clk 0:00:02.5]} 44... Bb6 {[%clk 0:00:03.6]} 45. Rg5+ {[%clk 0:00:03.1]}
45... Kb4 {[%clk 0:00:03.5]} 46. Qd6+ {[%clk 0:00:03]} 46... Kc4 {[%clk
0:00:03.2]} 47. Qd5+ {[%clk 0:00:03.4]} 47... Kc3 {[%clk 0:00:03.6]} 48. Qe5+
{[%clk 0:00:03.6]} 48... Kd2 {[%clk 0:00:03.5]} 49. Rg2+ {[%clk 0:00:03.9]}
49... Kd3 {[%clk 0:00:03.8]} 50. Qd5+ {[%clk 0:00:04]} 50... Qd4 {[%clk
0:00:04.4]} 51. Qb3+ {[%clk 0:00:04.3]} 51... Ke4 {[%clk 0:00:04.5]} 52. Qe6+
{[%clk 0:00:04.5]} 52... Kd3 {[%clk 0:00:05]} 53. Qb3+ {[%clk 0:00:04.7]} 53...
Qc3 {[%clk 0:00:05.6]} 54. Qd5+ {[%clk 0:00:04.9]} 54... Bd4 {[%clk 0:00:06.2]}
55. Qf5+ {[%clk 0:00:05.1]} 55... Kc4 {[%clk 0:00:06.8]} 56. Qf7+ {[%clk
0:00:05.1]} 56... Kb4 {[%clk 0:00:06.2]} 57. Qe7+ {[%clk 0:00:05.5]} 57... Bc5
{[%clk 0:00:06]} 58. Qe4+ {[%clk 0:00:05.5]} 58... Qac4 {[%clk 0:00:06.5]} 59.
Qb7+ {[%clk 0:00:05.9]} 59... Qb5 {[%clk 0:00:06.8]} 60. Qe4+ {[%clk 0:00:06.3]}
60... Ka3 {[%clk 0:00:04.9]} 61. Qd5 {[%clk 0:00:06.4]} 61... Qbc4 {[%clk
0:00:02.6]} 62. Qa8+ {[%clk 0:00:06]} 62... Kb3 {[%clk 0:00:03.2]} 63. Qb7+
{[%clk 0:00:06.2]} 63... Bb4 {[%clk 0:00:03.3]} 64. Qxh7 {[%clk 0:00:05.2]}
64... Qxf4+ {[%clk 0:00:03.8]} 65. Kh1 {[%clk 0:00:05.4]} 65... Qe1+ {[%clk
0:00:03.9]} 66. Rg1 {[%clk 0:00:06]} 66... Qf3+ {[%clk 0:00:04.4]} 67. Kh2
{[%clk 0:00:06.3]} 67... Qef2+ {[%clk 0:00:04.9]} 68. Rg2 {[%clk 0:00:06.9]}
68... Q2xg2# {[%clk 0:00:05.8]} 0-1

[Event "Early-Titled-Tuesday-Blitz-March-19-2024"]
[Site "Chess.com"]
[Date "2024.03.19"]
[Round "4"]
[White "Kotlyar_K"]
[Black "esrosenberg"]
[Result "0-1"]
[WhiteElo "2634"]
[BlackElo "2456"]
[TimeControl "180+1"]
[EndTime "8:41:11 PDT"]
[Termination "esrosenberg won on time"]

1. e4 {[%clk 0:02:59.6]} 1... e6 {[%clk 0:02:59.9]} 2. d4 {[%clk 0:02:58]} 2...
d5 {[%clk 0:03:00.4]} 3. Nc3 {[%clk 0:02:58.6]} 3... Bb4 {[%clk 0:03:00.4]} 4.
e5 {[%clk 0:02:56.7]} 4... c5 {[%clk 0:03:00.8]} 5. a3 {[%clk 0:02:54.9]} 5...
Bxc3+ {[%clk 0:03:00.9]} 6. bxc3 {[%clk 0:02:55.7]} 6... Ne7 {[%clk 0:03:01.5]}
7. Qg4 {[%clk 0:02:53.7]} 7... Qc7 {[%clk 0:03:01.9]} 8. Qxg7 {[%clk 0:02:51.8]}
8... Rg8 {[%clk 0:03:01.6]} 9. Qxh7 {[%clk 0:02:52.3]} 9... cxd4 {[%clk
0:03:02.2]} 10. Qd3 {[%clk 0:02:50.9]} 10... Qxe5+ {[%clk 0:02:56.5]} 11. Ne2
{[%clk 0:02:46.7]} 11... dxc3 {[%clk 0:02:38.8]} 12. Qxc3 {[%clk 0:02:44.7]}
12... Nbc6 {[%clk 0:02:33.7]} 13. Qxe5 {[%clk 0:02:40.2]} 13... Nxe5 {[%clk
0:02:34]} 14. Ng3 {[%clk 0:02:39.3]} 14... Bd7 {[%clk 0:02:33]} 15. Nh5 {[%clk
0:02:35.1]} 15... Rg6 {[%clk 0:01:50.2]} 16. Bb2 {[%clk 0:02:24.8]} 16... N7c6
{[%clk 0:01:23.7]} 17. f4 {[%clk 0:02:23.6]} 17... Ng4 {[%clk 0:01:22.6]} 18. h3
{[%clk 0:02:11.2]} 18... Ne3 {[%clk 0:01:20]} 19. Kd2 {[%clk 0:01:41.9]} 19...
Nxf1+ {[%clk 0:01:17.1]} 20. Raxf1 {[%clk 0:01:35.1]} 20... Rxg2+ {[%clk
0:01:17.5]} 21. Kc1 {[%clk 0:01:35.7]} 21... Rc8 {[%clk 0:01:02]} 22. Nf6+
{[%clk 0:01:25.3]} 22... Ke7 {[%clk 0:01:01.9]} 23. Rfg1 {[%clk 0:01:13.6]}
23... Rxg1+ {[%clk 0:00:52.3]} 24. Rxg1 {[%clk 0:01:13.9]} 24... Na5 {[%clk
0:00:43.7]} 25. Nxd7 {[%clk 0:01:04.2]} 25... Kxd7 {[%clk 0:00:43.5]} 26. Rg7
{[%clk 0:01:02.2]} 26... Ke7 {[%clk 0:00:41.6]} 27. h4 {[%clk 0:01:02]} 27...
Nc4 {[%clk 0:00:37.1]} 28. Bc3 {[%clk 0:00:57.2]} 28... Nxa3 {[%clk 0:00:32.9]}
29. Bb4+ {[%clk 0:00:56.2]} 29... Kf6 {[%clk 0:00:32.9]} 30. Rg2 {[%clk
0:00:50.7]} 30... Nb5 {[%clk 0:00:25.9]} 31. h5 {[%clk 0:00:41.9]} 31... d4
{[%clk 0:00:20.5]} 32. Kd2 {[%clk 0:00:26]} 32... Rh8 {[%clk 0:00:19.6]} 33. Rg5
{[%clk 0:00:26.3]} 33... a6 {[%clk 0:00:19.5]} 34. Kd3 {[%clk 0:00:23.4]} 34...
Rd8 {[%clk 0:00:13.8]} 35. Be1 {[%clk 0:00:18.5]} 35... Rh8 {[%clk 0:00:10.7]}
36. Bf2 {[%clk 0:00:17.3]} 36... Rd8 {[%clk 0:00:09.9]} 37. Bg1 {[%clk
0:00:16.3]} 37... Nd6 {[%clk 0:00:07.8]} 38. Bxd4+ {[%clk 0:00:15.3]} 38... Ke7
{[%clk 0:00:08.4]} 39. c3 {[%clk 0:00:11.2]} 39... Nf5 {[%clk 0:00:08.7]} 40.
Ke4 {[%clk 0:00:11.4]} 40... Nxd4 {[%clk 0:00:07.2]} 41. cxd4 {[%clk 0:00:11.8]}
41... b5 {[%clk 0:00:06.8]} 42. h6 {[%clk 0:00:06.6]} 42... Rh8 {[%clk
0:00:06.6]} 43. Rh5 {[%clk 0:00:05.9]} 43... Kf6 {[%clk 0:00:07.1]} 44. Rh1
{[%clk 0:00:04]} 44... Kg6 {[%clk 0:00:07.3]} 45. Ra1 {[%clk 0:00:02.9]} 45...
Ra8 {[%clk 0:00:07.4]} 46. Rh1 {[%clk 0:00:03]} 46... Kh7 {[%clk 0:00:06.7]} 47.
Ke5 {[%clk 0:00:02.6]} 47... b4 {[%clk 0:00:06.7]} 48. Kf6 {[%clk 0:00:03.2]}
48... Ra7 {[%clk 0:00:07.4]} 49. Rb1 {[%clk 0:00:02.1]} 49... a5 {[%clk
0:00:07.5]} 50. Rh1 {[%clk 0:00:02.1]} 50... b3 {[%clk 0:00:06.9]} 51. Rh2
{[%clk 0:00:01.2]} 51... a4 {[%clk 0:00:06.8]} 52. d5 {[%clk 0:00:01.3]} 52...
exd5 {[%clk 0:00:05.8]} 53. f5 {[%clk 0:00:01]} 53... a3 {[%clk 0:00:05.8]} 54.
Rg2 {[%clk 0:00:00.4]} 54... b2 {[%clk 0:00:04.3]} 0-1